bitfinex/quotes_SOLUSD_20260214
["timestamp","ask_amount","ask_price","bid_price","bid_amount"]
[1771064391613,0.48970402,85.929,85.907,0.48057472]
[1771064393137,0.48970402,85.928,85.907,0.48057472]
[1771064394631,0.48970402,85.928,85.909,0.48057472]
[1771064396827,0.48970402,85.938,85.911,0.48057472]
[1771064398731,0.48970402,85.929,85.911,0.48057472]
[1771064399236,0.48970402,85.929,85.906,0.48057472]
[1771064400231,0.48970402,85.929,85.908,0.48057472]
[1771064402612,0.48952635,85.927,85.892,0.48582327]
[1771064403738,11.637921,85.926,85.893,11.64239227]
[1771064403933,0.48952635,85.925,85.894,0.48582327]
[1771064406214,0.48952635,85.923,85.895,11.64212119]
[1771064406538,0.48952635,85.923,85.896,0.48582327]
[1771064410845,0.48952635,85.919,85.896,0.48582327]
[1771064411145,0.48952635,85.919,85.898,0.48582327]
[1771064411530,0.48952635,85.909,85.891,0.48582327]
[1771064415738,0.48952635,85.909,85.89,0.2]
[1771064416349,0.48952635,85.907,85.89,0.2]
[1771064416651,0.48952635,85.907,85.891,0.48582327]
[1771064419249,0.48952635,85.912,85.891,0.48582327]
[1771064419752,11.63945228,85.915,85.891,0.48582327]
[1771064419953,12.12897863,85.915,85.891,0.48582327]
[1771064420140,0.48952635,85.914,85.891,0.48582327]
[1771064421151,0.48952635,85.909,85.89,0.2]
[1771064421854,0.48952635,85.909,85.891,0.48582327]
[1771064423252,0.48952635,85.909,85.88,0.2]
[1771064423253,0.48952635,85.899,85.88,0.2]
[1771064424540,12.13124094,85.898,85.88,0.2]
[1771064424841,0.48952635,85.897,85.88,0.2]
[1771064426039,11.64198565,85.896,85.881,0.48582327]
[1771064426452,62.06077962,85.905,85.881,0.48582327]
[1771064426754,62.55030597,85.905,85.881,0.48582327]
[1771064427950,62.06077962,85.905,85.881,0.48582327]
[1771064429053,62.55030597,85.905,85.881,0.48582327]
[1771064429760,50.90952635,85.905,85.883,0.48582327]
[1771064431362,0.45463243,85.904,85.883,0.48582327]
[1771064431590,12.09566941,85.903,85.883,0.48582327]
[1771064431858,0.45463243,85.902,85.883,0.48582327]
[1771064432059,11.64103698,85.903,85.883,0.48582327]
[1771064432868,50.42,85.905,85.884,0.49861556]
[1771064433066,3.92683025,85.92,85.883,11.64362702]
[1771064433368,0.45463243,85.92,85.883,11.64362702]
[1771064433552,0.45463243,85.92,85.886,0.49661983]
[1771064436068,0.45463243,85.92,85.888,0.49661968]
[1771064437063,0.45463243,85.919,85.888,0.49661968]
[1771064437271,0.45463243,85.909,85.887,11.6432056]
[1771064437850,0.45463243,85.909,85.883,0.49661963]
[1771064438052,0.45463243,85.907,85.883,0.49661963]
[1771064439747,0.49550796,85.914,85.883,0.49661963]
[1771064440662,0.49550796,85.914,85.885,0.45468612]
[1771064441544,0.49550796,85.914,85.887,0.45468612]
[1771064441863,11.639682,85.913,85.887,0.45468612]
[1771064442066,0.49550796,85.912,85.887,0.45468612]
[1771064445851,0.49550796,85.912,85.889,0.45468612]
[1771064446774,0.49550796,85.91,85.884,0.45468612]
[1771064447471,50.56,85.924,85.884,0.45468612]
[1771064447472,0.49550796,85.92,85.884,0.45468612]
[1771064448173,0.49550796,85.92,85.891,0.45468612]
[1771064449058,0.49550796,85.92,85.892,11.64252782]
[1771064449265,0.49550796,85.92,85.893,0.45468612]
[1771064452878,0.49550796,85.92,85.895,0.45468612]
[1771064457284,0.49550796,85.92,85.897,0.45468612]
[1771064458487,0.49550796,85.918,85.881,11.64401904]
[1771064458675,0.49550796,85.918,85.881,12.09870516]
[1771064458865,0.49550796,85.918,85.882,0.45468612]
[1771064459680,0.49550796,85.918,85.884,0.45468612]
[1771064464988,0.49550796,85.918,85.886,0.48227133]
[1771064465174,0.45539419,85.923,85.891,0.48227133]
[1771064466789,0.45539419,85.923,85.893,0.48227133]
[1771064467785,0.45539419,85.921,85.893,0.48227133]
[1771064469892,0.45539419,85.921,85.895,0.48227133]
[1771064470193,0.45539419,85.953,85.911,0.48227133]
[1771064470489,0.45539419,85.953,85.921,0.48227133]
[1771064470869,0.45539419,85.958,85.931,0.48227133]
[1771064471794,0.45539419,85.958,85.933,0.48227133]
[1771064472992,0.45539419,85.965,85.935,0.48227133]
[1771064473177,0.45539419,85.973,85.935,0.48227133]
[1771064473990,11.63087886,85.979,85.941,0.48227133]
[1771064473991,0.45539419,85.979,85.941,0.48227133]
[1771064474376,0.45539419,85.969,85.941,0.48227133]
[1771064475472,9.54869411,86.0,85.929,0.48227133]
[1771064475473,0.45539419,85.959,85.929,0.48227133]
[1771064478985,0.45539419,85.959,85.931,0.48227133]
[1771064480189,0.45539419,85.959,85.932,11.63710841]
[1771064480386,0.45539419,85.959,85.933,0.48227133]
[1771064481493,0.45539419,85.959,85.928,11.63765012]
[1771064482293,0.45539419,85.959,85.928,12.11992145]
[1771064482491,0.45539419,85.959,85.929,0.48227133]
[1771064484209,0.45539419,85.959,85.931,0.48227133]
[1771064488514,0.45539419,85.959,85.933,0.48227133]
[1771064494315,0.45539419,85.959,85.935,0.48557785]
[1771064495510,0.45539419,85.959,85.934,11.63683757]
[1771064496728,0.45539419,85.959,85.922,29.09587377]
[1771064496729,0.49478349,85.949,85.907,68.08]
[1771064497014,0.49478349,85.929,85.904,0.48557785]
[1771064497919,0.49478349,85.929,85.908,11.64035945]
[1771064498120,0.49478349,85.929,85.909,0.48557785]
[1771064499012,0.49478349,85.939,85.909,0.48557785]
[1771064500321,11.63587134,85.942,85.911,0.45871611]
[1771064500901,12.13033821,85.942,85.911,0.45871611]
[1771064501422,0.49446687,85.941,85.911,0.45871611]
[1771064502415,0.49446687,85.941,85.912,11.63981748]
[1771064502724,0.49446687,85.941,85.913,0.45871611]
[1771064508813,0.49446687,85.941,85.914,11.63954652]
[1771064509007,0.49446687,85.941,85.915,0.45871611]
[1771064511130,0.49446687,85.941,85.917,0.45871611]
[1771064513415,0.49446687,85.94,85.917,0.45871611]
[1771064520635,0.49446687,85.938,85.913,0.45871611]
[1771064520822,0.49446687,85.938,85.907,0.45871611]
[1771064522731,0.47538336,85.929,85.908,11.64035945]
[1771064523744,0.47538336,85.929,85.905,68.71318731]
[1771064523951,0.47538336,85.929,85.906,11.64063045]
[1771064524153,0.47538336,85.929,85.907,0.45318731]
[1771064526449,0.47538336,85.929,85.908,11.64035945]
[1771064526633,0.47538336,85.929,85.909,0.45318731]
[1771064528843,0.47538336,85.929,85.905,0.45318731]
[1771064529248,0.47538336,85.929,85.901,11.64130801]
[1771064529751,0.47538336,85.927,85.901,11.64130801]
[1771064531630,79.70722327,85.949,85.88,3.6718317]
[1771064531631,0.47538336,85.919,85.887,11.6432056]
[1771064531865,11.637921,85.926,85.887,11.6432056]
[1771064531866,0.47538336,85.909,85.887,11.6432056]
[1771064533157,0.47538336,85.909,85.885,0.45318731]
[1771064534556,0.47538336,85.909,85.887,0.45318731]
[1771064537053,0.47538336,85.909,85.883,0.45318731]
[1771064538254,0.47538336,85.909,85.884,11.64361231]
[1771064538453,0.47538336,85.909,85.885,0.45318731]
[1771064540359,50.56,85.938,85.88,0.2]
[1771064540360,0.47538336,85.899,85.88,0.2]
[1771064541457,0.47538336,85.899,85.881,11.64401904]
[1771064544249,0.47538336,85.909,85.884,0.45318731]
[1771064545759,0.47538336,85.909,85.883,11.64374788]
[1771064546468,0.47538336,85.909,85.883,12.09693519]
[1771064546645,0.47538336,85.909,85.883,11.64374788]
[1771064547252,3.4718317,85.91,85.88,0.2]
[1771064547253,0.47538336,85.907,85.88,0.2]
[1771064547770,0.47538336,85.907,85.881,11.64401904]
[1771064548673,0.47538336,85.905,85.881,11.64401904]
[1771064549472,0.47538336,85.899,85.88,0.2]
[1771064549872,0.47538336,85.899,85.881,11.64401904]
[1771064554570,0.47538336,85.899,85.88,0.2]
[1771064555580,0.46469736,85.897,85.88,0.2]
[1771064555965,0.46469736,85.895,85.88,0.2]
[1771064560867,0.46469736,85.895,85.881,0.45210422]
[1771064561386,0.46469736,85.895,85.88,0.2]
[1771064563379,0.46469736,85.895,85.881,0.45210422]
[1771064564184,0.48866421,85.908,85.881,0.45210422]
[1771064565477,0.48866421,85.908,85.882,11.64388346]
[1771064565680,0.48866421,85.908,85.883,0.45210422]
[1771064566568,0.48866421,85.906,85.883,0.45210422]
[1771064568591,0.48866421,85.906,85.884,11.64361231]
[1771064568791,0.48866421,85.906,85.881,0.45210422]
[1771064569769,11.64076596,85.905,85.881,0.45210422]
[1771064569968,0.48866421,85.904,85.881,0.45210422]
[1771064570487,0.48866421,85.904,85.882,11.64388346]
[1771064570981,0.48866421,85.904,85.882,12.09598768]
[1771064571489,0.48866421,85.904,85.883,0.45210422]
[1771064574175,0.48866421,85.903,85.883,0.45210422]
[1771064578601,0.48866421,85.901,85.88,11.84405676]
[1771064579886,0.48866421,85.899,85.88,11.84405676]
[1771064580081,0.48866421,85.897,85.88,0.2]
[1771064580307,0.48866421,85.889,85.88,0.2]
[1771064580483,0.48866421,85.889,85.87,11.84550435]
[1771064582483,0.48866421,85.889,85.87,12.31276257]
[1771064582882,0.48866421,85.889,85.871,0.46725822]
[1771064583605,15.1163535,85.9,85.873,0.46725822]
[1771064584409,0.46840385,85.899,85.873,0.46725822]
[1771064584622,0.46840385,85.905,85.873,0.46725822]
[1771064585479,0.46840385,85.904,85.873,0.46725822]
[1771064587407,0.46840385,85.904,85.875,0.46725822]
[1771064587606,0.46840385,85.899,85.875,0.46725822]
[1771064590916,0.46840385,85.899,85.876,11.644697]
[1771064591105,0.46840385,85.899,85.877,0.46725822]
[1771064593108,0.46840385,85.899,85.878,11.64442581]
[1771064593416,0.46840385,85.899,85.879,0.46725822]
[1771064595019,0.46840385,85.899,85.881,0.46725822]
[1771064598316,0.46840385,85.899,85.877,0.46725822]
[1771064600418,0.46840385,85.899,85.879,0.46725822]
[1771064610630,0.46840385,85.899,85.88,0.46725822]
[1771064613831,0.46840385,85.899,85.882,0.46234411]
[1771064614132,0.48912116,85.904,85.882,0.46234411]
[1771064616741,0.48912116,85.903,85.882,0.46234411]
[1771064618440,0.48912116,85.901,85.877,11.64455349]
[1771064618618,3.47481462,85.9,85.872,0.46234411]
[1771064618931,0.48912116,85.899,85.872,0.46234411]
[1771064620222,11.64171459,85.898,85.872,0.46234411]
[1771064620430,0.48413734,85.897,85.872,0.46234411]
[1771064624038,0.48413734,85.902,85.874,0.48515337]
[1771064625138,0.48413734,85.902,85.876,0.48515337]
[1771064626129,3.47481462,85.9,85.876,0.48515337]
[1771064626339,0.48413734,85.899,85.875,11.6448326]
[1771064627445,0.48413734,85.899,85.875,0.48515337]
[1771064629723,0.48413734,85.899,85.877,0.48515337]
[1771064631545,0.48413734,85.899,85.879,0.48515337]
[1771064633943,0.48413734,85.899,85.88,11.64415463]
[1771064634142,0.48413734,85.909,85.881,0.48515337]
[1771064634332,0.48413734,85.907,85.881,0.48515337]
[1771064636251,0.48413734,85.905,85.881,0.48515337]
[1771064638754,0.48413734,85.903,85.881,0.48515337]
[1771064641555,0.48413734,85.903,85.883,0.48474152]
[1771064644056,0.48413734,85.903,85.884,0.48474152]
[1771064645646,0.46838557,85.901,85.884,0.48474152]
[1771064651174,0.46838557,85.926,85.886,0.48474152]
[1771064651462,0.46838557,85.926,85.885,11.64347674]
[1771064651463,0.46838557,85.926,85.891,0.48474152]
[1771064652560,0.46838557,85.924,85.893,0.48474152]
[1771064655461,0.46838557,85.922,85.895,0.48474152]
[1771064655875,0.46838557,85.941,85.901,0.48474152]
[1771064656380,0.46838557,85.948,85.911,0.48474152]
[1771064656546,46.78,85.963,85.894,40.74789856]
[1771064656547,0.46838557,85.959,85.921,0.48474152]
[1771064656953,0.46838557,85.959,85.931,0.48474152]
[1771064657367,0.46838557,85.957,85.918,0.48474152]
[1771064658366,0.46838557,85.957,85.921,0.48474152]
[1771064659359,0.46838557,85.955,85.923,0.48474152]
[1771064661174,0.46838557,85.955,85.931,0.48474152]
[1771064661371,0.46838557,85.953,85.931,0.48474152]
[1771064663665,11.63440059,85.952,85.931,0.48474152]
[1771064663866,0.46838557,85.951,85.931,0.48474152]
[1771064664391,0.46838557,85.963,85.941,0.48474152]
[1771064666283,0.46838557,85.961,85.941,0.48474152]
[1771064673772,0.46838557,85.961,85.94,3.47378707]
[1771064673773,0.45067743,85.959,85.932,0.45316049]
[1771064675692,0.45067743,85.957,85.921,11.63859824]
[1771064675860,0.45067743,85.957,85.921,12.09175873]
[1771064676060,0.45067743,85.957,85.922,0.45316049]
[1771064678182,0.45067743,85.955,85.923,12.09148782]
[1771064678463,0.45067743,85.955,85.931,0.45316049]
[1771064681384,0.45067743,85.955,85.932,0.49414684]
[1771064682770,0.45067743,85.955,85.934,0.49414684]
[1771064684189,0.45067743,85.955,85.936,0.49414684]
[1771064684385,0.45067743,85.955,85.931,12.13134871]
[1771064684963,0.46463991,85.953,85.927,11.63772769]
[1771064685285,0.46463991,85.953,85.923,11.63829531]
[1771064685472,0.46463991,85.949,85.924,0.49414684]
[1771064687789,0.46463991,85.949,85.925,12.13220328]
[1771064689370,0.46463991,85.947,85.925,12.13220328]
[1771064694308,0.46463991,85.947,85.926,0.49414684]
[1771064700992,0.46463991,85.945,85.915,12.13347916]
[1771064701291,0.46463991,85.945,85.915,0.49414684]
[1771064701494,11.6352128,85.946,85.9,3.47378707]
[1771064701495,0.46198455,85.937,85.905,0.49140229]
[1771064704999,0.46198455,85.935,85.907,0.49140229]
[1771064707001,0.46198455,85.935,85.909,0.49140229]
[1771064707183,0.46198455,85.942,85.909,0.49140229]
[1771064707389,0.46198455,85.946,85.911,0.49140229]
[1771064707588,0.46198455,85.952,85.911,0.49140229]
[1771064707982,0.46198455,85.952,85.921,0.49140229]
[1771064711100,0.46198455,85.952,85.922,11.63846279]
[1771064711296,0.46198455,85.952,85.923,0.49140229]
[1771064715510,0.46198455,85.952,85.924,11.63819189]
[1771064715711,0.46198455,85.952,85.925,0.49140229]
[1771064717002,0.46198455,85.952,85.927,0.49140229]
[1771064728299,0.46198455,85.952,85.928,11.63765012]
[1771064728498,0.46198455,85.952,85.929,0.49140229]
[1771064728706,0.46198455,85.958,85.931,0.49140229]
[1771064730718,0.46198455,85.958,85.933,0.49140229]
[1771064730920,11.63372383,85.957,85.933,0.49140229]
[1771064731103,0.48059019,85.957,85.933,0.49140229]
[1771064732518,0.48059019,85.957,85.934,11.63683757]
[1771064732716,0.48059019,85.957,85.935,0.48684556]
[1771064734716,0.48059019,85.957,85.937,0.48684556]
[1771064738604,0.48059019,85.957,85.932,0.48684556]
[1771064739229,0.48059019,85.955,85.932,0.48684556]
[1771064740527,0.4864445,85.953,85.924,0.48178499]
[1771064746347,0.4864445,85.951,85.926,0.48178499]
[1771064752129,0.4864445,85.951,85.927,11.63778556]
[1771064752313,0.4864445,85.951,85.928,0.48178499]
[1771064752518,0.4864445,85.949,85.928,0.48178499]
[1771064756142,0.4864445,85.949,85.93,0.48178499]
[1771064762846,0.4864445,85.949,85.926,0.45487978]
[1771064763756,11.63494205,85.948,85.925,11.63799523]
[1771064763956,0.49223965,85.947,85.913,11.639682]
[1771064765441,0.49223965,85.947,85.907,11.64036239]
[1771064765637,0.49223965,85.947,85.907,12.09524217]
[1771064765844,0.49223965,85.945,85.907,11.64036239]
[1771064767352,11.63548357,85.944,85.907,11.64036239]
[1771064767550,0.49223965,85.939,85.907,11.64036239]
[1771064769560,0.49223965,85.937,85.907,11.64036239]
[1771064770957,0.49223965,85.937,85.908,0.45487978]
[1771064772547,11.63656674,85.936,85.909,11.64022395]
[1771064772747,0.49223965,85.935,85.91,0.45487978]
[1771064775663,0.49223965,85.933,85.91,0.45487978]
[1771064776750,0.49223965,85.931,85.91,0.45487978]
[1771064783271,0.49223965,85.931,85.911,11.63995297]
[1771064783671,0.49223965,85.931,85.911,12.09483275]
[1771064784385,0.49223965,85.931,85.911,11.63995297]
[1771064784874,0.49223965,85.931,85.908,0.45487978]
[1771064787374,0.49223965,85.931,85.909,11.64022395]
[1771064787575,0.49223965,85.931,85.91,0.45487978]
[1771064796784,0.49074076,85.929,85.91,0.45487978]
[1771064799662,0.49074076,85.927,85.91,0.45487978]
[1771064802081,0.49074076,85.927,85.898,12.10751636]
[1771064802259,0.49074076,85.927,85.899,0.46580177]
[1771064802884,0.46075409,85.925,85.899,0.46580177]
[1771064803875,0.46075409,85.925,85.898,12.10751636]
[1771064804088,0.46075409,85.923,85.898,0.46580177]
[1771064807987,0.46075409,85.923,85.899,11.64157906]
[1771064808295,0.46075409,85.923,85.899,12.10738083]
[1771064809381,0.46075409,85.923,85.9,0.46580177]
[1771064810192,0.46075409,85.921,85.9,0.46580177]
[1771064812896,0.46075409,85.921,85.886,69.2]
[1771064812897,3.47062743,85.91,85.86,0.56580177]
[1771064813194,0.46075409,85.909,85.872,0.46580177]
[1771064817900,0.46075409,85.907,85.874,0.46580177]
[1771064819376,11.64063045,85.906,85.875,11.6448326]
[1771064819581,0.46075409,85.905,85.876,0.46580177]
[1771064820299,0.46075409,85.889,85.871,0.46580177]
[1771064820604,3.47062743,85.88,85.86,0.1]
[1771064820984,3.47062743,85.87,85.86,0.1]
[1771064822388,0.47315273,85.869,85.86,0.1]
[1771064822901,0.47315273,85.868,85.85,0.1]
[1771064823094,0.47315273,85.859,85.85,0.1]
[1771064826005,0.47315273,85.859,85.84,0.1]
[1771064826305,0.47315273,85.849,85.84,0.1]
[1771064826686,0.47315273,85.849,85.832,11.65063396]
[1771064827191,0.47315273,85.848,85.83,0.1]
[1771064829201,11.6486307,85.847,85.83,0.1]
[1771064829410,0.47315273,85.839,85.83,0.1]
[1771064831608,0.47315273,85.855,85.83,0.1]
[1771064832191,11.64643259,85.864,85.83,0.1]
[1771064832401,0.47315273,85.863,85.83,0.1]
[1771064832711,0.47315273,85.859,85.83,0.1]
[1771064832910,3.47750663,85.85,85.83,0.1]
[1771064833113,0.47315273,85.849,85.83,0.1]
[1771064833810,0.47315273,85.847,85.83,0.1]
[1771064834190,3.47750663,85.86,85.83,0.5623243]
[1771064834393,0.47315273,85.858,85.83,0.5623243]
[1771064835315,0.47315273,85.849,85.83,0.5623243]
[1771064835705,12.1216317,85.849,85.83,0.5623243]
[1771064837497,0.47315273,85.848,85.83,0.5623243]
[1771064838922,0.47315273,85.846,85.83,0.5623243]
[1771064842128,0.47315273,85.846,85.83,0.1]
[1771064842627,0.47315273,85.846,85.831,0.4623243]
[1771064846518,0.47315273,85.844,85.831,0.4623243]
[1771064847312,0.47315273,85.839,85.82,0.1]
[1771064847930,0.47315273,85.839,85.82,0.5623243]
[1771064849010,0.47315273,85.837,85.82,0.5623243]
[1771064849731,0.47315273,85.837,85.82,0.1]
[1771064851437,0.49332793,85.829,85.81,0.1]
[1771064851733,0.49332793,85.829,85.801,8.03652337]
[1771064851734,0.49332793,85.819,85.801,8.03652337]
[1771064851926,3.47750663,85.81,85.801,8.03652337]
[1771064852232,3.97083456,85.81,85.801,8.03652337]
[1771064853129,0.49332793,85.809,85.801,8.03652337]
[1771064854213,0.49332793,85.819,85.801,8.03652337]
[1771064855636,0.49332793,85.817,85.801,8.03652337]
[1771064856716,0.49332793,85.817,85.793,0.47616548]
[1771064858323,3.47750663,85.82,85.794,0.47616548]
[1771064858614,0.47095376,85.819,85.794,0.47616548]
[1771064859322,0.47095376,85.848,85.794,0.47616548]
[1771064859524,0.47095376,85.848,85.801,0.47616548]
[1771064859724,0.47095376,85.847,85.801,0.47616548]
[1771064860226,11.64849501,85.848,85.811,0.45164783]
[1771064860432,11.64849501,85.848,85.813,0.45164783]
[1771064862126,62.18785945,85.853,85.813,0.45164783]
[1771064862532,31.06405241,85.849,85.815,0.45164783]
[1771064863030,19.41568261,85.849,85.815,0.45164783]
[1771064863219,19.41568261,85.849,85.821,0.45164783]
[1771064864719,19.41568261,85.849,85.823,0.45164783]
[1771064866419,19.41568261,85.849,85.825,0.45164783]
[1771064868033,0.47095376,85.848,85.825,0.45164783]
[1771064868334,0.47095376,85.848,85.82,3.47750663]
[1771064868335,0.47095376,85.847,85.82,0.45164783]
[1771064868535,0.47095376,85.845,85.82,0.45164783]
[1771064868735,0.47095376,85.839,85.802,0.45164783]
[1771064870843,0.47095376,85.837,85.804,0.45164783]
[1771064873646,0.47095376,85.835,85.804,0.45164783]
[1771064874030,0.47095376,85.835,85.806,0.45164783]
[1771064877846,11.65039494,85.834,85.806,0.45164783]
[1771064878346,0.47095375,85.833,85.806,0.45164783]
[1771064879432,11.64903778,85.844,85.806,0.45164783]
[1771064879630,11.64903778,85.844,85.811,0.45164783]
[1771064880545,11.64849501,85.848,85.813,0.45164783]
[1771064880742,0.47095375,85.847,85.813,0.45164783]
[1771064880943,19.41568261,85.849,85.821,0.45164783]
[1771064881247,19.41568261,85.849,85.831,0.46487877]
[1771064881457,14.95935016,85.849,85.83,3.47750663]
[1771064883939,14.95935016,85.849,85.831,11.65080215]
[1771064884136,0.5,85.872,85.84,3.47750663]
[1771064884648,0.5,85.878,85.85,3.47750663]
[1771064886048,0.5,85.876,85.843,11.64917349]
[1771064887642,0.5,85.874,85.843,11.64917349]
[1771064888636,0.5,85.872,85.843,11.64917349]
[1771064889250,0.5,85.884,85.85,3.47591051]
[1771064889431,0.5,85.881,85.85,3.47591051]
[1771064890235,0.5,85.881,85.843,11.64917349]
[1771064891849,0.5,85.879,85.851,11.64808796]
[1771064896060,0.5,85.879,85.86,3.47591051]
[1771064897854,0.5,85.895,85.87,3.47591051]
[1771064899964,0.5,85.893,85.87,3.47591051]
[1771064900152,0.5,85.893,85.86,3.47591051]
[1771064902356,0.5,85.891,85.86,3.47591051]
[1771064907062,0.5,85.889,85.86,3.47591051]
[1771064911086,0.5,85.887,85.86,3.47591051]
[1771064913473,0.5,85.885,85.86,3.47591051]
[1771064916167,0.5,85.883,85.85,3.47591051]
[1771064919355,0.5,85.881,85.851,11.64808796]
[1771064919578,0.5,85.881,85.86,3.47591051]
[1771064928580,0.5,85.879,85.856,11.64730068]
[1771064928987,0.5,85.879,85.85,3.47591051]
[1771064930991,0.5,85.879,85.851,11.64808796]
[1771064936099,0.5,85.877,85.846,11.64863238]
[1771064937190,0.5,85.875,85.841,11.6494449]
[1771064940676,0.5,85.873,85.841,11.6494449]
[1771064941374,0.5,85.873,85.85,3.47591051]
[1771064942690,0.5,85.871,85.85,3.47591051]
[1771064944598,0.5,85.871,85.84,3.47591051]
[1771064947002,0.5,85.871,85.841,11.6494449]
[1771064947477,0.5,85.871,85.85,3.47546772]
[1771064948300,0.5,85.871,85.841,110.03305715]
[1771064948906,0.5,85.871,85.85,3.47546772]
[1771064949395,0.5,85.876,85.85,3.47546772]
[1771064949599,0.5,85.888,85.85,3.47546772]
[1771064950697,0.5,85.886,85.86,3.47546772]
[1771064951199,0.5,85.886,85.85,3.47546772]
[1771064954500,0.5,85.884,85.851,11.64808796]
[1771064959202,0.5,85.882,85.851,11.64808796]
[1771064960592,0.5,85.88,85.851,11.64808796]
[1771064962291,0.5,85.878,85.851,11.64808796]
[1771064966415,0.5,85.878,85.846,11.64876639]
[1771064969818,0.5,85.878,85.845,69.3]
[1771064969819,0.5,85.878,85.851,11.64808796]
[1771064970610,0.5,85.899,85.851,40.76830787]
[1771064970916,0.5,85.898,85.851,40.76830787]
[1771064972038,40.74647542,85.897,85.851,40.76830787]
[1771064972197,0.5,85.896,85.851,40.76830787]
[1771064972407,0.5,85.896,85.851,11.64808796]
[1771064975624,3.47546772,85.9,85.851,11.64808796]
[1771064975625,0.5,85.894,85.851,11.64808796]
[1771064977824,11.64239227,85.893,85.851,11.64808796]
[1771064978124,0.5,85.892,85.851,11.64808796]
[1771064979831,0.5,85.89,85.851,40.76830787]
[1771064980028,0.5,85.89,85.86,3.47546772]
[1771064980529,0.5,85.89,85.852,69.76]
[1771064982130,0.5,85.89,85.86,3.47546772]
[1771064982931,0.5,85.89,85.853,40.76735815]
[1771064984438,0.5,85.89,85.853,11.64781661]
[1771064984439,0.5,85.888,85.853,11.64781661]
[1771064988522,11.6432056,85.887,85.853,11.64781661]
[1771064988727,0.5,85.886,85.853,11.64781661]
[1771064989612,0.5,85.884,85.853,11.64781661]
[1771064994446,0.5,85.882,85.853,11.64781661]
[1771064995538,0.5,85.88,85.853,11.64781661]
[1771064998041,29.10572377,85.894,85.853,11.64781661]
[1771064998042,0.5,85.878,85.853,11.64781661]
[1771065003070,29.10572377,85.894,85.847,70.08]
[1771065003071,0.5,85.876,85.848,11.64849501]
[1771065004050,0.5,85.876,85.851,11.64808796]
[1771065007475,3.47546772,85.9,85.87,3.47546772]
[1771065007476,0.5,85.899,85.87,3.47546772]
[1771065008182,0.5,85.899,85.88,3.47546772]
[1771065008863,0.5,85.899,85.88,3.4728045]
[1771065009779,0.5,85.899,85.875,11.6447355]
[1771065010658,0.5,85.899,85.88,3.4728045]
[1771065017563,0.5,85.899,85.881,11.64401904]
[1771065018084,0.5,85.899,85.88,3.4728045]
[1771065019279,7.52898123,85.901,85.881,11.64401904]
[1771065020367,8.02898123,85.901,85.881,11.64401904]
[1771065021575,0.5,85.9,85.881,11.64401904]
[1771065026265,0.5,85.917,85.89,3.4728045]
[1771065026468,0.5,85.938,85.91,3.4728045]
[1771065026682,0.5,85.938,85.92,3.4728045]
[1771065026872,0.5,85.938,85.91,3.4728045]
[1771065027297,0.5,85.936,85.911,11.63995297]
[1771065027477,0.5,85.936,85.904,11.64086403]
[1771065027795,0.5,85.936,85.9,73.7328045]
[1771065027796,0.5,85.936,85.9,3.4728045]
[1771065027994,0.5,85.929,85.89,3.4728045]
[1771065029382,0.5,85.927,85.91,3.4728045]
[1771065029898,0.2,85.94,85.92,3.4728045]
[1771065029899,0.5,85.938,85.92,3.4728045]
[1771065030798,0.5,85.938,85.91,3.4728045]
[1771065033908,0.5,85.936,85.91,3.4728045]
[1771065035972,0.5,85.934,85.91,3.4728045]
[1771065037297,0.5,85.939,85.92,3.4728045]
[1771065041497,12.1362432,85.939,85.91,3.4728045]
[1771065041697,0.5,85.938,85.91,3.4728045]
[1771065045384,0.5,85.938,85.911,11.63995297]
[1771065051192,0.2,85.94,85.91,3.4728045]
[1771065051193,0.5,85.936,85.91,3.4728045]
[1771065052317,11.63670215,85.935,85.91,3.4728045]
[1771065052611,0.5,85.934,85.91,3.4728045]
[1771065053493,0.5,85.932,85.905,11.6406927]
[1771065057003,0.5,85.93,85.905,11.6406927]
[1771065058216,0.5,85.93,85.91,3.4728045]
[1771065059514,0.2,85.94,85.92,3.4728045]
[1771065059713,0.2,85.94,85.911,11.63995297]
[1771065059714,0.2,85.94,85.93,3.4728045]
[1771065060417,0.5,85.958,85.93,3.4728045]
[1771065060714,0.5,85.958,85.931,11.63724383]
[1771065061015,0.5,85.962,85.94,3.4728045]
[1771065062214,0.5,85.962,85.931,11.63724383]
[1771065062414,0.5,85.962,85.94,3.4728045]
[1771065064513,0.5,85.96,85.94,3.4728045]
[1771065069026,0.5,85.96,85.94,3.4678853]
[1771065070016,0.5,85.958,85.94,3.4678853]
[1771065075521,0.5,85.956,85.93,3.4678853]
[1771065075717,0.5,85.956,85.931,11.63724383]
[1771065077814,0.5,85.966,85.94,3.4678853]
[1771065081022,0.5,85.966,85.941,11.63588973]